bitfinex-derivatives/quotes_SOLF0:USTF0_20250206
["timestamp","ask_amount","ask_price","bid_price","bid_amount"]
[1738882703235,0.03587213,190.61,190.51,3.2001]
[1738882703440,5.28197213,190.61,190.55,5.2475]
[1738882704123,0.03587213,190.61,190.51,3.2001]
[1738882704329,5.2466,190.59,190.54,5.2478]
[1738882705736,0.03587213,190.61,190.51,3.2001]
[1738882705932,13.31384283,190.57,190.46,13.31384283]
[1738882706136,0.0385954,190.58,190.46,13.31384283]
[1738882706336,5.2474,190.56,190.51,5.2485]
[1738882706534,0.03936651,190.54,190.51,5.2485]
[1738882706833,0.03936651,190.54,190.46,13.31384283]
[1738882707837,5.28756651,190.54,190.49,5.2491]
[1738882708137,5.28756651,190.54,190.46,13.31384283]
[1738882709033,5.28756651,190.54,190.5,5.249]
[1738882709342,0.03936651,190.54,190.46,13.31384283]
[1738882709638,0.03936651,190.54,190.49,5.249]
[1738882710036,5.28756651,190.54,190.5,5.249]
[1738882713343,0.03936651,190.54,190.46,13.31384283]
[1738882713545,5.2484,190.53,190.49,5.2493]
[1738882713940,5.28245305,190.53,190.49,5.2493]
[1738882715647,0.03405305,190.53,190.46,5.2501]
[1738882715845,0.03405305,190.53,190.43,13.31384283]
[1738882716443,0.03405305,190.53,190.51,5.2487]
[1738882716942,0.03405305,190.53,190.46,13.31384283]
[1738882717444,0.03405305,190.53,190.52,5.2485]
[1738882717947,5.247,190.58,190.49,13.31384283]
[1738882718155,21.3764298,190.62,190.5,1.6021]
[1738882718556,21.3764298,190.62,190.51,1.5996]
[1738882719057,0.03464561,190.58,190.55,0.03405306]
[1738882719254,0.03464561,190.58,190.57,5.2471]
[1738882719753,21.3764298,190.62,190.59,5.2465]
[1738882720751,21.3764298,190.62,190.55,0.03405306]
[1738882720951,21.41597028,190.62,190.61,5.246]
[1738882721352,57.00381281,190.61,190.6,0.03510222]
[1738882721552,51.92541281,190.61,190.6,0.03510222]
[1738882722958,20.01713628,190.62,190.6,0.03510222]
[1738882723259,20.01713628,190.62,190.57,5.2469]
[1738882724157,5.2465,190.6,190.55,5.2474]
[1738882724356,5.2465,190.6,190.58,0.03359645]
[1738882724758,5.2466,190.59,190.58,9.645e-05]
[1738882726859,55.48688476,190.59,190.58,9.645e-05]
[1738882727057,55.48688476,190.59,190.52,13.31384283]
[1738882727459,55.48688476,190.59,190.58,5.2468]
[1738882727964,47.86418476,190.59,190.58,5.2468]
[1738882729562,45.32318476,190.59,190.58,5.2468]
[1738882730359,40.24918476,190.59,190.58,5.2468]
[1738882730662,21.60969373,190.6,190.59,5.2466]
[1738882731255,21.60969373,190.6,190.56,5.2471]
[1738882731462,21.60969373,190.6,190.52,13.31384283]
[1738882731764,21.60969373,190.6,190.57,5.247]
[1738882732961,21.60969373,190.6,190.58,5.2468]
[1738882734961,26.85599373,190.6,190.54,5.2478]
[1738882735168,26.85599373,190.6,190.52,13.31384283]
[1738882735367,5.28401228,190.6,190.52,13.31384283]
[1738882735770,0.03771228,190.6,190.52,13.31384283]
[1738882737869,0.03771228,190.6,190.58,5.2466]
[1738882739267,5.28421228,190.6,190.56,5.2472]
[1738882739466,0.03771228,190.6,190.56,5.2472]
[1738882739868,5.2466,190.59,190.56,5.2472]
[1738882740669,0.03771228,190.6,190.52,13.31384283]
[1738882740867,5.28411228,190.6,190.57,5.247]
[1738882743276,5.28411228,190.6,190.52,13.31384283]
[1738882743476,5.28411228,190.6,190.56,5.2472]
[1738882743675,5.28411228,190.6,190.51,1.5996]
[1738882744076,5.2466,190.59,190.56,5.2473]
[1738882744978,0.03771228,190.6,190.51,1.5996]
[1738882745275,5.28411228,190.6,190.57,5.2471]
[1738882745477,5.28411228,190.6,190.49,13.31384283]
[1738882745478,0.03771228,190.6,190.49,13.31384283]
[1738882745675,5.247,190.58,190.54,5.2477]
[1738882746374,5.247,190.58,190.49,13.31384283]
[1738882746581,5.247,190.58,190.55,5.2476]
[1738882746975,5.28691662,190.58,190.55,5.2476]
[1738882749475,0.03991662,190.58,190.52,8.56547085]
[1738882749680,5.2471,190.57,190.54,5.2479]
[1738882749878,0.03991662,190.58,190.54,5.2479]
[1738882750384,5.28681662,190.58,190.54,5.2479]
[1738882750776,5.28681662,190.58,190.52,8.56547085]
[1738882750978,5.28681662,190.58,190.55,5.2476]
[1738882751981,0.03991662,190.58,190.52,8.56547085]
[1738882752176,0.03991662,190.58,190.56,5.2471]
[1738882752581,0.03991662,190.58,190.56,5.2472]
[1738882752776,0.03991662,190.58,190.54,8.56547085]
[1738882753786,0.03991662,190.58,190.57,5.2471]
[1738882756386,0.03991662,190.58,190.57,8.4263]
[1738882756789,0.03991662,190.58,190.57,5.2471]
[1738882757190,243.46102631,190.68,190.57,3.1792]
[1738882757384,5.2448,190.66,190.6,8.56547085]
[1738882758489,0.03499875,190.65,190.61,0.03738918]
[1738882758787,0.03499875,190.65,190.62,5.2456]
[1738882759583,0.03499875,190.65,190.61,0.03738918]
[1738882760283,5.27989875,190.65,190.62,5.2457]
[1738882760584,0.03499875,190.65,190.61,0.03738918]
[1738882761790,0.03499875,190.65,190.63,5.2454]
[1738882763887,0.03499875,190.65,190.61,0.03738918]
[1738882764090,5.2453,190.64,190.61,0.03738918]
[1738882764586,5.2453,190.64,190.61,5.28338918]
[1738882764891,5.2453,190.64,190.61,0.03738918]
[1738882767292,5.27989875,190.65,190.61,5.28318918]
[1738882767492,0.03499875,190.65,190.61,0.03738918]
[1738882767986,0.03499875,190.65,190.62,5.2457]
[1738882768192,0.03499875,190.65,190.61,0.03738918]
[1738882768891,5.28009875,190.65,190.61,5.28328918]
[1738882772195,5.2457,190.62,190.61,0.03738918]
[1738882774602,8.56547085,190.64,190.61,0.03738918]
[1738882774803,0.03499875,190.65,190.61,0.03738918]
[1738882775403,8.56547085,190.64,190.61,0.03738918]
[1738882776197,5.2455,190.63,190.61,0.03738918]
[1738882779302,5.246,190.61,190.57,5.247]
[1738882780104,5.2467,190.59,190.54,5.2478]
[1738882780501,0.0376415,190.58,190.52,8.56547085]
[1738882780799,0.0376415,190.58,190.55,5.2476]
[1738882780999,0.0376415,190.58,190.52,8.56547085]
[1738882781200,0.0376415,190.58,190.56,5.2472]
[1738882782606,0.0376415,190.58,190.57,5.2471]
[1738882789611,5.2471,190.57,190.54,5.2478]
[1738882789810,5.2471,190.57,190.52,8.56547085]
[1738882790111,5.28223952,190.57,190.52,8.56547085]
[1738882790810,0.03513952,190.57,190.52,8.56547085]
[1738882791115,1.6296,190.67,190.52,8.56547085]
[1738882791116,1.6296,190.67,190.56,8.56547085]
[1738882791413,6.8742,190.67,190.63,5.2452]
[1738882791605,21.57198145,190.64,190.63,5.2452]
[1738882793611,0.0332749,190.65,190.62,8.59884909]
[1738882793812,0.0332749,190.65,190.64,5.2452]
[1738882794912,0.0332749,190.65,190.63,5.2454]
[1738882795315,0.0332749,190.65,190.62,0.03337824]
[1738882795508,0.0332749,190.65,190.63,5.2455]
[1738882795910,0.0332749,190.65,190.62,0.03337824]
[1738882796413,0.0332749,190.65,190.62,8.59884909]
[1738882796608,21.57198145,190.71,190.7,5.2435]
[1738882797211,21.57198145,190.71,190.7,13.80897085]
[1738882798013,0.03860251,190.72,190.7,5.2435]
[1738882799417,0.03860251,190.72,190.69,5.27902669]
[1738882800420,8.56547085,190.71,190.69,0.03532669]
[1738882801016,8.56547085,190.71,190.6,8.56547085]
[1738882801322,8.56547085,190.67,190.6,8.56547085]
[1738882801621,8.56547085,190.69,190.62,8.56547085]
[1738882801814,8.56547085,190.69,190.64,5.245]
[1738882802220,0.03703097,190.68,190.65,0.03561517]
[1738882802618,5.28133097,190.68,190.65,0.03561517]
[1738882802913,0.03703097,190.68,190.65,0.03561517]
[1738882803219,8.56547085,190.67,190.6,8.56547085]
[1738882803821,0.03703097,190.68,190.65,8.56547085]
[1738882804021,8.56547085,190.71,190.65,8.56547085]
[1738882804418,0.03834938,190.68,190.63,8.56547085]
[1738882804723,8.56547085,190.69,190.61,8.56547085]
[1738882805025,0.03623264,190.67,190.61,8.56547085]
[1738882805218,13.84630349,190.67,190.59,8.56547085]
[1738882805423,13.81007085,190.67,190.59,8.56547085]
[1738882805722,0.04024471,190.65,190.59,8.56547085]
[1738882806626,0.04024471,190.65,190.62,5.2456]
[1738882807215,0.04024471,190.65,190.6,5.2463]
[1738882807420,0.04024471,190.65,190.57,8.56547085]
[1738882807421,8.60571556,190.65,190.57,8.56547085]
[1738882807621,13.81107085,190.63,190.55,8.56547085]
[1738882807820,13.84435933,190.63,190.55,8.56547085]
[1738882808325,13.84435933,190.63,190.58,5.2468]
[1738882810128,0.03328848,190.63,190.61,8.56547085]
[1738882811228,0.03328848,190.63,190.61,13.81127085]
[1738882811424,0.03328848,190.63,190.61,8.56547085]
[1738882811425,8.848e-05,190.63,190.61,8.56547085]
[1738882811831,8.848e-05,190.63,190.62,8.4787]
[1738882812229,28.46168145,190.73,190.7,5.2435]
[1738882812426,28.46168145,190.73,190.67,8.56547085]
[1738882812729,37.0271523,190.73,190.67,8.56547085]
[1738882813025,5.243,190.72,190.68,5.2441]
[1738882813226,31.7842523,190.73,190.65,8.56547085]
[1738882813426,0.0332048,190.72,190.68,0.03328848]
[1738882813626,5.2763048,190.72,190.68,0.03328848]
[1738882813827,0.0332048,190.72,190.68,0.03328848]
[1738882814127,8.56547085,190.71,190.68,0.03328848]
[1738882814333,8.56547085,190.69,190.68,0.03328848]
[1738882814525,8.56547085,190.69,190.63,8.56547085]
[1738882814727,1.6468,190.73,190.58,1.5532]
[1738882814927,13.3707208,190.68,190.58,1.5532]
[1738882815428,5.245,190.65,190.6,5.246]
[1738882815635,13.40837924,190.65,190.52,13.3707208]
[1738882815833,13.3707208,190.65,190.52,13.3707208]
[1738882816032,0.03415526,190.6,190.52,13.3707208]
[1738882816233,0.03415526,190.6,190.54,5.2478]
[1738882816424,0.03415526,190.6,190.5,3.1892]
[1738882816628,13.3707208,190.59,190.46,13.3707208]
[1738882816834,13.3707208,190.56,190.43,16.5599208]
[1738882817029,13.3707208,190.5,190.37,156.45827374]
[1738882817429,0.03506895,190.46,190.37,156.45827374]
[1738882818235,0.03506895,190.46,190.4,5.2516]
[1738882818434,0.03506895,190.46,190.37,13.3707208]
[1738882818633,0.03506895,190.46,190.34,13.3707208]
[1738882818833,5.2504,190.45,190.38,5.2523]
[1738882819031,0.03842686,190.42,190.38,5.2523]
[1738882822632,0.03842686,190.42,190.34,13.3707208]
[1738882822832,5.2516,190.41,190.31,13.3707208]
[1738882823233,0.03660125,190.38,190.31,13.3707208]
[1738882823836,0.03660125,190.38,190.35,5.2531]
[1738882824143,0.03660125,190.38,190.31,13.3707208]
[1738882825940,0.03660125,190.38,190.31,5.2542]
[1738882826142,5.2526,190.37,190.31,5.2542]
[1738882826331,5.2526,190.37,190.28,13.3707208]
[1738882826535,13.40732205,190.38,190.25,13.3707208]
[1738882826735,13.3707208,190.38,190.25,13.3707208]
[1738882826943,0.0398163,190.33,190.25,13.3707208]
[1738882827143,5.254,190.32,190.22,13.3707208]
[1738882827343,13.3707208,190.35,190.22,13.3707208]
[1738882827651,0.03318769,190.29,190.22,13.3707208]
[1738882827942,0.03318769,190.29,190.24,5.2562]
[1738882828131,0.03318769,190.29,190.19,13.3707208]
[1738882828334,5.2551,190.28,190.21,5.2569]
[1738882828640,5.2551,190.28,190.19,13.3707208]
[1738882828641,0.03922819,190.26,190.16,13.3707208]
[1738882828840,13.40994899,190.26,190.16,13.3707208]
[1738882829045,13.40994899,190.26,190.13,13.3707208]
[1738882829046,1.5244,190.25,190.13,13.3707208]
[1738882829344,13.3707208,190.23,190.1,13.3707208]
[1738882829534,0.03811988,190.21,190.1,13.3707208]
[1738882830444,13.3707208,190.2,190.07,13.3707208]
[1738882830841,0.03836933,190.15,190.07,13.3707208]
[1738882831647,0.03836933,190.15,190.04,13.3707208]
[1738882831943,13.3707208,190.2,190.04,13.3707208]
[1738882832152,0.03830138,190.11,190.04,13.3707208]
[1738882832444,13.3707208,190.17,190.04,13.3707208]
[1738882832746,0.04014717,190.09,190.08,5.2606]
[1738882832942,5.2582,190.17,190.03,21.51304599]
[1738882833138,0.03502,190.08,190.04,5.2616]
[1738882833343,5.2582,190.17,190.03,21.51304599]
[1738882833545,0.03671824,190.08,190.03,21.51304599]
[1738882833843,0.03579505,190.07,190.03,21.51304599]
[1738882834644,0.03579505,190.07,190.06,5.2612]
[1738882836545,9.505e-05,190.07,190.06,5.2612]
[1738882836751,3.92,190.21,190.06,21.51304599]
[1738882836948,3.92,190.21,190.14,5.2589]
[1738882837253,3.92,190.21,190.06,21.51304599]
[1738882837542,21.51304599,190.2,190.06,21.51304599]
[1738882837938,0.03848055,190.15,190.13,5.2592]
[1738882839355,0.03848055,190.15,190.11,0.03476965]
[1738882840746,0.03848055,190.15,190.12,5.2595]
[1738882841252,0.03848055,190.15,190.11,0.03476965]
[1738882841951,0.03848055,190.15,190.13,5.259]
[1738882845651,5.29718055,190.15,190.11,5.29456965]
[1738882846849,0.03848055,190.15,190.11,0.03476965]
[1738882847053,0.03848055,190.15,190.12,5.2595]
[1738882847553,0.03848055,190.15,190.11,0.03476965]
[1738882847755,5.29728055,190.15,190.11,5.29446965]
[1738882851658,0.03848055,190.15,190.11,0.03476965]
[1738882851855,5.259,190.14,190.11,0.03476965]
[1738882853652,13.44880054,190.12,190.11,0.03476965]
[1738882853858,5.2601,190.1,190.06,5.2611]
[1738882854054,13.44880054,190.12,190.05,0.20176]
[1738882854359,13.44880054,190.06,190.05,0.16184338]
[1738882854753,13.44880054,190.06,189.94,3.2202]
[1738882854956,13.44880054,190.03,189.94,3.2202]
[1738882855357,0.03548189,190.0,189.96,5.2639]
[1738882856153,0.03548189,190.0,189.94,1.5316]
[1738882856154,5.2632,189.99,189.94,1.5316]
[1738882856353,5.2632,189.99,189.87,15.13740054]
[1738882856555,5.2632,189.99,189.88,1.6082]
[1738882856749,0.03785104,189.95,189.88,1.6082]
[1738882857853,0.03785104,189.95,189.9,5.2656]
[1738882858050,0.03785104,189.95,189.87,1.6886]
[1738882858449,5.2649,189.93,189.87,6.9548]
[1738882858651,5.2649,189.93,189.87,1.6886]
[1738882859160,5.2649,189.93,189.86,5.2665]
[1738882859359,5.2652,189.92,189.81,13.44880054]
[1738882859552,13.44880054,189.91,189.8,1.8043]
[1738882859755,13.48713592,189.91,189.83,5.2673]
[1738882859958,13.44880054,189.88,189.78,13.44880054]
[1738882860159,13.44880054,189.88,189.75,13.44880054]
[1738882860359,13.44880054,189.85,189.75,13.44880054]
[1738882860556,0.03505802,189.83,189.75,13.44880054]
[1738882861356,6.55632838,191.55,189.72,3.2502]
[1738882861357,13.44880054,189.94,189.81,13.44880054]
[1738882861563,13.44880054,189.94,189.82,1.6027]
[1738882861755,13.44880054,189.97,189.84,13.44880054]
[1738882861957,13.44880054,189.97,189.87,5.2662]
[1738882862158,13.44880054,189.94,189.82,1.6027]
[1738882862556,0.03415701,189.9,189.89,5.2657]
[1738882863258,13.48295755,189.9,189.86,0.03680792]
[1738882863867,5.266,189.89,189.86,0.03680792]
[1738882864965,13.48295755,189.9,189.86,0.03680792]
[1738882865667,5.2659,189.89,189.86,0.03680792]
[1738882866165,18.71520054,189.87,189.86,0.03680792]
[1738882868961,13.44880054,189.87,189.81,5.2681]
[1738882869168,5.2669,189.86,189.81,5.2681]
[1738882869369,13.44880054,189.84,189.77,5.269]
[1738882869667,18.71630054,189.84,189.74,1.6998]
[1738882869857,13.44880054,189.84,189.8,5.2682]
[1738882870165,13.4848093,189.84,189.74,1.6998]
[1738882870966,18.7524093,189.84,189.79,5.2685]
[1738882871167,0.03600876,189.84,189.74,15.14860054]
[1738882871368,0.03600876,189.84,189.8,13.44880054]
[1738882871570,38.32968199,189.96,189.83,13.44880054]
[1738882871767,35.02078199,189.96,189.86,13.44880054]
[1738882871961,21.57198145,189.96,189.86,13.44880054]
[1738882872161,21.57198145,189.96,189.84,1.6798]
[1738882872162,21.57198145,189.96,189.89,13.44880054]
[1738882872366,21.57198145,189.96,189.92,13.44880054]
[1738882872775,19.0640829,189.96,189.95,5.2642]
[1738882873067,16.3173829,189.96,189.95,5.2642]
[1738882873271,3.1427829,189.96,189.95,5.2642]
[1738882873570,8.29e-05,189.96,189.95,5.2642]
[1738882874072,8.29e-05,189.96,189.95,18.71300054]
[1738882874469,47.08396581,189.98,189.97,5.2637]
[1738882874666,30.45526581,189.98,189.97,5.2637]
[1738882874870,135.45553202,190.01,189.95,21.52851958]
[1738882875070,63.77951033,190.01,190.0,5.2628]
[1738882875270,25.28491033,190.01,190.0,5.2628]
[1738882875568,84.41970613,190.13,189.99,21.52851958]
[1738882875774,84.41970613,190.13,189.99,21.56297808]
[1738882876071,0.03571446,190.08,189.99,21.52851958]
[1738882876272,0.03571446,190.08,190.04,0.0369748]
[1738882877668,0.03571446,190.08,190.05,7.1975476]
[1738882879073,5.29651446,190.08,190.05,7.1975476]
[1738882879276,0.03571446,190.08,190.05,7.1975476]
[1738882880776,0.03571446,190.08,190.04,0.0369748]
[1738882881276,5.29631446,190.08,190.04,0.0369748]
[1738882881676,0.03571446,190.08,190.04,0.0369748]
[1738882883070,5.29641446,190.08,190.04,0.0369748]
[1738882884276,5.2609,190.07,190.04,0.0369748]
[1738882885080,0.03571446,190.08,190.04,0.0369748]
[1738882886784,5.29631446,190.08,190.04,5.2986748]
[1738882886995,0.03571446,190.08,190.04,0.0369748]
[1738882888593,5.2615,190.05,190.04,0.0369748]
[1738882890686,0.03571446,190.08,190.04,0.0369748]
[1738882892095,5.261,190.07,190.04,0.0369748]
[1738882894399,5.29641446,190.08,190.04,0.0369748]
[1738882894596,0.03571446,190.08,190.04,0.0369748]
[1738882895095,0.03571446,190.08,190.07,5.2609]
[1738882895899,0.03571446,190.08,190.04,0.0369748]
[1738882896098,0.03571446,190.08,190.05,5.2614]
[1738882897996,0.03571446,190.08,190.04,0.0369748]
[1738882897997,0.03571446,190.08,190.07,5.2609]
[1738882898194,1.446e-05,190.08,190.07,5.2609]
[1738882898598,3.5216,190.19,190.06,13.45188404]
[1738882898798,5.2579,190.18,190.14,5.2587]
[1738882898998,3.5216,190.19,190.14,5.2587]
[1738882899202,5.2584,190.16,190.11,5.2598]
[1738882899601,13.45188404,190.18,190.11,5.2598]
[1738882899906,0.03700893,190.15,190.12,0.0355614]
[1738882900604,0.03700893,190.15,190.14,5.259]
[1738882901603,0.03700893,190.15,190.12,0.0355614]
[1738882902602,5.259,190.14,190.12,0.0355614]
[1738882902806,0.03700893,190.15,190.12,0.0355614]
[1738882903401,0.03700893,190.15,190.08,5.2605]
[1738882903707,15.00448404,190.18,190.02,13.45188404]
[1738882903900,5.2595,190.13,190.02,13.45188404]
[1738882904507,0.03784348,190.09,190.06,0.03485443]
[1738882905208,0.03784348,190.09,190.08,5.2606]
[1738882907007,4.348e-05,190.09,190.08,18.71248404]
[1738882907205,1.5526,190.18,190.08,13.45188404]
[1738882907410,3.5216,190.19,190.16,5.2582]
[1738882907602,3.5216,190.19,190.11,13.45188404]
[1738882907808,13.45188404,190.24,190.2,5.2572]
[1738882908108,6.7879,190.24,190.14,13.45188404]
[1738882908298,1.6785,190.25,190.14,13.45188404]
[1738882908498,0.03911311,190.21,190.17,0.03872608]
[1738882908900,0.03911311,190.21,190.17,13.49061012]
[1738882909101,0.03911311,190.21,190.2,5.2573]
[1738882909306,1.311e-05,190.21,190.2,18.70918404]
[1738882909503,1.6342,190.31,190.2,13.45188404]
[1738882909717,1.6342,190.31,190.23,13.45188404]
[1738882910015,13.45188404,190.36,190.23,13.45188404]
[1738882910207,1.6342,190.37,190.32,5.2539]
[1738882910506,1.6342,190.37,190.26,13.45188404]
[1738882910709,0.03768272,190.36,190.33,0.03953652]
[1738882911405,0.03768272,190.36,190.35,5.2532]
[1738882911601,0.03768272,190.36,190.33,0.03953652]
[1738882912011,0.03768272,190.36,190.25,29.05097174]
[1738882912408,5.2534,190.35,190.29,5.2548]
[1738882912608,0.03768272,190.36,190.26,21.46016463]
[1738882913009,21.46016463,190.42,190.3,5.2545]
[1738882913210,0.03916846,190.33,190.3,5.2545]
[1738882913406,0.03916846,190.33,190.29,0.03359227]
[1738882913606,5.2541,190.32,190.26,5.2554]
[1738882913804,0.03954711,190.33,190.3,0.03677474]
[1738882914215,5.2543,190.31,190.3,0.03677474]
[1738882914611,0.03954711,190.33,190.3,0.03677474]
[1738882915712,0.03954711,190.33,190.23,21.46016463]
[1738882915911,1.59534711,190.33,190.22,29.05097174]
[1738882916617,5.2546,190.3,190.25,5.2559]
[1738882917111,5.2546,190.3,190.26,0.03774394]
[1738882917412,1.59534711,190.33,190.26,0.03774394]
[1738882917613,1.6495,190.32,190.26,0.03774394]
[1738882918010,5.2553,190.28,190.26,0.03774394]
[1738882918410,1.6495,190.32,190.26,0.03774394]
[1738882918605,5.29389983,190.29,190.26,0.03774394]
[1738882919010,0.03899983,190.29,190.26,0.03774394]
[1738882919212,5.2551,190.28,190.26,0.03774394]
[1738882919611,0.03899983,190.29,190.2,7.26274293]
[1738882920008,21.46016463,190.27,190.2,7.26274293]
[1738882920210,21.46016463,190.27,190.16,23.96757174]
[1738882920514,5.2571,190.21,190.16,23.96757174]
[1738882920715,21.46016463,190.27,190.16,23.96757174]
[1738882920917,0.03415578,190.2,190.17,0.03566466]
[1738882921407,21.46016463,190.27,190.17,0.03566466]
[1738882921608,5.2576,190.19,190.17,0.03566466]
[1738882921814,21.46016463,190.27,190.17,0.03566466]
[1738882922013,0.03379743,190.2,190.17,0.03566466]
[1738882922215,5.2572,190.21,190.17,0.03566466]
[1738882922416,0.03475894,190.2,190.17,0.03566466]
[1738882922614,5.29215894,190.2,190.17,0.03566466]
[1738882922918,0.03475894,190.2,190.15,5.2587]
[1738882923514,0.03475894,190.2,190.08,21.46016463]
[1738882923711,0.03475894,190.2,190.06,21.78822881]
[1738882923918,21.46016463,190.21,190.06,21.78822881]
[1738882924123,0.03685231,190.15,190.06,21.78822881]
[1738882924816,0.03685231,190.15,190.05,21.78822881]
[1738882925017,25.55701694,190.15,190.05,21.78822881]
[1738882925212,21.46016463,190.12,190.05,21.78822881]
[1738882925418,1.6654,190.11,190.05,21.78822881]
[1738882925924,5.2612,190.06,190.05,21.78822881]
[1738882926224,5.2612,190.06,190.05,2.881e-05]
[1738882926422,5.2615,190.05,190.04,38.1764753]
[1738882926922,5.2615,190.05,190.04,27.7749753]
[1738882927232,5.2623,190.02,189.92,29.3472753]
[1738882927524,21.46016463,190.09,189.95,5.2642]
[1738882927726,5.2627,190.01,189.95,5.2642]
[1738882927919,0.03452181,189.99,189.92,31.0276753]
[1738882928119,0.03452181,189.99,189.94,5.2645]
[1738882928319,0.03452181,189.99,189.92,31.0276753]
[1738882929224,0.03452181,189.99,189.94,5.2645]
[1738882929525,0.03452181,189.99,189.92,1.5723]
[1738882930422,21.46016463,190.09,189.93,21.46016463]
[1738882930822,25.50016463,190.12,189.93,21.46016463]
[1738882931021,5.2607,190.08,190.02,5.2623]
[1738882931224,25.50016463,190.12,189.96,21.46016463]
[1738882931225,25.50016463,190.12,189.97,1.6803]
[1738882931818,0.03949769,190.06,190.03,0.03452181]
[1738882932424,21.46016463,190.18,190.03,0.03452181]
[1738882932724,21.46016463,190.18,190.02,21.46016463]
[1738882932924,5.2598,190.11,189.99,21.46016463]
[1738882933124,21.46016463,190.27,190.08,21.46016463]
[1738882933319,12.20551852,190.3,190.12,21.46016463]
[1738882933715,6.959e-05,190.19,190.18,21.46016463]
[1738882933921,5.2539,190.33,190.18,21.46016463]
[1738882934221,21.46016463,190.32,190.15,21.46016463]
[1738882934626,1.683,190.35,190.22,21.46016463]
[1738882934822,0.03393746,190.25,190.22,21.49476208]
[1738882935022,1.683,190.35,190.22,21.46016463]
[1738882935216,4.14,190.41,190.25,21.46016463]
[1738882935421,21.46016463,190.42,190.22,21.46016463]
[1738882935619,21.46016463,190.39,190.22,21.46016463]
[1738882936123,5.2537,190.34,190.25,5.2558]
[1738882936425,0.03872546,190.32,190.16,21.46016463]
[1738882936624,5.2545,190.31,190.22,5.2567]
[1738882936824,21.46016463,190.37,190.2,21.46016463]
[1738882937216,21.46016463,190.43,190.26,21.46016463]
[1738882937618,0.03535734,190.36,190.33,0.03823296]
[1738882938022,21.46016463,190.43,190.33,0.03823296]
[1738882938223,0.03560229,190.36,190.33,0.03823296]
[1738882938424,21.46016463,190.43,190.33,0.03823296]
[1738882938720,5.2527,190.37,190.33,0.03823296]
[1738882938929,0.03318258,190.4,190.33,0.03823296]
[1738882939826,0.03318258,190.4,190.35,21.46016463]
[1738882940125,1.8587,190.56,190.35,21.46016463]
[1738882940126,4.18,190.51,190.41,5.2515]
[1738882940325,4.18,190.51,190.35,21.46016463]
[1738882941027,5.2501,190.47,190.37,5.2524]
[1738882941232,0.03850746,190.45,190.41,0.03353635]
[1738882942322,1.6241,190.56,190.41,21.49370098]
[1738882942522,23.03516463,190.58,190.41,21.49370098]
[1738882942832,23.03516463,190.58,190.38,21.46016463]
[1738882942833,21.46016463,190.55,190.38,21.46016463]
[1738882943428,5.2487,190.52,190.45,5.2504]
[1738882943731,23.03516463,190.58,190.41,21.46016463]
[1738882943927,5.2482,190.53,190.47,0.03501317]
[1738882944127,0.03834975,190.5,190.47,0.03501317]
[1738882944329,5.2482,190.53,190.47,0.03501317]
[1738882944532,0.03605812,190.5,190.47,0.03501317]
[1738882948935,5.28525812,190.5,190.47,0.03501317]
[1738882949735,0.03605812,190.5,190.47,0.03501317]
[1738882949931,5.2493,190.49,190.47,0.03501317]
[1738882950536,0.03605812,190.5,190.47,0.03501317]
[1738882951035,5.2494,190.49,190.47,0.03501317]
[1738882951934,0.03605812,190.5,190.47,0.03501317]
[1738882952131,0.03605812,190.5,190.39,1.5547]
[1738882952935,5.2503,190.46,190.39,5.252]
[1738882953138,21.46016463,190.49,190.34,1.5359]
[1738882953440,0.03332505,190.44,190.41,0.03486752]
[1738882954633,5.2515,190.42,190.41,0.03486752]
[1738882955035,0.03332505,190.44,190.34,1.5359]
[1738882955338,21.46016463,190.43,190.34,1.5359]
[1738882955836,21.46016463,190.43,190.26,21.46016463]
[1738882956037,21.46016463,190.37,190.22,4.7946]
[1738882956340,21.46016463,190.34,190.22,4.7946]
[1738882957035,4.14,190.35,190.24,5.2562]
[1738882957435,0.03989937,190.31,190.28,0.03487669]
[1738882958743,5.29429937,190.31,190.28,0.03487669]
[1738882959042,0.03989937,190.31,190.28,0.03487669]
[1738882959230,21.46016463,190.37,190.28,0.03487669]
[1738882959231,5.2522,190.39,190.28,0.03487669]
[1738882959436,21.46016463,190.46,190.29,21.46016463]
[1738882959637,1.6917,190.48,190.38,5.2523]
[1738882959939,4.14,190.49,190.35,21.46016463]
[1738882960241,4.14,190.49,190.36,1.5774]
[1738882960242,21.46016463,190.46,190.36,1.5774]
[1738882960437,0.03367613,190.44,190.33,1.6529]
[1738882960639,0.03367613,190.44,190.39,0.03393448]
[1738882961038,5.252,190.4,190.39,0.03393448]
[1738882961739,5.2515,190.41,190.39,0.03393448]
[1738882962137,0.03367613,190.44,190.39,0.03393448]
[1738882962643,34.83416737,190.54,190.39,0.03393448]